[Event "31st MPL National U18 Chess-ch 2022"]
[Site "Pollachi"]
[Date "2022.04.22"]
[Round "9.7"]
[White "Bharath Subramaniyam H"]
[Black "Dhruva Thota"]
[Result "1-0"]
[ECO "A05"]
[WhiteElo "2508"]
[BlackElo "1525"]
[Annotator "TA"]
[PlyCount "91"]
[EventDate "2022.04.18"]
[EventCountry "IND"]
[SourceTitle "playchess.com"]
[Source "ChessBase"]
[SourceQuality "1"]
[TimeControl "5400+30"]

{[%evp 9,91,-4,31,14,19,14,26,24,39,40,32,25,38,22,18,0,7,0,-14,-30,-18,-8,-10,-16,-13,-21,0,0,26,18,16,0,25,9,81,76,183,200,193,191,183,143,184,183,163,156,411,411,411,411,411,411,404,404,404,388,326,101,102,94,93,31,123,96,123,37,202,80,75,0,69,-252,22,0,62,69,62,72,71,36,507,395,29939,6805]} 1. b3 {[%emt 0:00:05]} g6 {[%emt 0:00:45]} 2. Bb2 {[%emt 0:00:11]} Nf6 {[%emt 0:00:06]} 3. Nf3 {[%emt 0:00:22]} Bg7 {[%emt 0:00:13]} 4. g3 {[%emt 0:00:07]} O-O {[%emt 0:00:08]} 5. Bg2 {[%emt 0:00:06]} a5 {[%emt 0:00:07]} 6. O-O {[%emt 0:00:47] A05: Réti Opening: 1 Nf3 Nf6.} a4 {[%emt 0:00:07]} 7. b4 {[%emt 0:00:42]} d5 {[%emt 0:00:06]} 8. a3 {[%emt 0:00:34] White has an edge.} Nbd7 {[%emt 0:00:06]} 9. d3 {[%emt 0:05:32] [#]} c5 $146 {[%emt 0:00:21]} ({Predecessor:} 9... Re8 10. c4 dxc4 11. dxc4 Nb6 12. Nbd2 c6 13. c5 Nbd5 14. Qc1 Bf5 15. Ne5 Qb8 {1-0 (51) Artemiev,V (2671)-Krutko,A (2397) Sochi 2015}) 10. bxc5 {[%emt 0:00:23]} Nxc5 {[%emt 0:00:06]} 11. Nbd2 {[%emt 0:02:49]} b5 {[%emt 0:00:08]} 12. Rb1 {[%emt 0:08:03]} Ba6 {[%emt 0:02:39]} 13. e3 {[%emt 0:16:00]} Rc8 {[%emt 0:05:52]} 14. Qe2 {[%emt 0:04:01]} e6 {[%emt 0:06:38]} 15. Rfc1 {[%emt 0:12:58]} Qa5 {[%emt 0:06:27]} 16. Qd1 {[%emt 0:05:44]} Rfd8 {[%emt 0:03:48]} 17. h4 {[%emt 0:07:10]} h6 {[%emt 0:16:37]} 18. Bf1 {[%emt 0:03:33]} Nfd7 {[%emt 0:07:29]} 19. Bxg7 {[%emt 0:07:59]} Kxg7 {[%emt 0:00:22]} 20. h5 {[%emt 0:03:06]} g5 {[%emt 0:08:01]} 21. Nd4 {[%emt 0:01:35]} Nb7 {[%emt 0:05:09]} (21... Ne5 $11 {remains equal.}) 22. c4 $1 $16 {[%emt 0:05:38]} dxc4 {[%emt 0:09:52]} (22... bxc4 $16 23. dxc4 Nf6) 23. dxc4 $18 {[%emt 0:00:47]} bxc4 {[%emt 0:01:14]} 24. Nxc4 {[%emt 0:01:34]} Bxc4 {[%emt 0:01:11]} 25. Rxc4 {[%emt 0:03:24]} Rxc4 {[%emt 0:10:41]} 26. Bxc4 {[%emt 0:00:07]} Ndc5 {[%emt 0:00:05]} 27. Qc2 {[%emt 0:03:45][%cal Od4e6]} Rd7 $2 {[%emt 0:11:18] [#]} (27... Qc7 $16 {was worth a try.} 28. Rc1 Qd7) 28. Bxe6 $1 {[%emt 0:02:54][%mdl 512]} Nxe6 {[%emt 0:00:31]} 29. Nxe6+ {[%emt 0:00:10]} fxe6 {[%emt 0:00:25]} 30. Qg6+ {[%emt 0:00:06][%mdl 64] Deflection, Double Attack} Kf8 {[%emt 0:00:12]} 31. Qxh6+ {[%emt 0:00:21]} Kg8 {[%emt 0:02:25]} 32. Qxe6+ {[%emt 0:03:04]} Rf7 {[%emt 0:00:05]} 33. Qg6+ $2 {[%emt 0:02:05]} (33. Qe8+ $18 {is more deadly.} Rf8 34. Qg6+ Kh8 35. h6 (35. Rxb7 $2 Qe1+ 36. Kh2 Rxf2+ 37. Kh3 Qh1+ 38. Kg4 Qf3+ 39. Kh3 Qxb7 $19)) 33... Kf8 $16 {[%emt 0:01:53]} 34. Rb4 {[%emt 0:00:56][%mdl 1024] White has strong compensation.} Qd5 {[%emt 0:00:46]} 35. Qc2 {[%emt 0:00:35] Prevents Qd1+. Dancing on a razor blade.} (35. Rd4 $1 $16 {[%cal Rd4d5]} Qf5 36. Qxf5 Rxf5 37. Rxa4) 35... Qc5 {[%emt 0:00:59]} ({Black should play} 35... Nd6 $14) 36. Qb2 {[%emt 0:00:38]} (36. Qxa4 Qc1+ 37. Kg2 Qd2 $17) 36... Nd6 {[%emt 0:00:49][%cal Og5g4]} 37. h6 {[%emt 0:00:26]} (37. Rxa4 $16 {aiming for h6.} Qd5 38. Rd4) 37... Ke7 $2 {[%emt 0:00:39] [#]} (37... Qd5 $14) 38. Rxa4 {[%emt 0:00:30]} (38. e4 $1 $18 {[%cal Re4e5] is the precise move to win.} Ne8 39. Rb5) 38... Rh7 {[%emt 0:00:36]} 39. Rb4 {[%emt 0:00:36] &Bianco is more active.} (39. Ra6 $16 {[%cal Oe3e4] Hoping for e4!} Kf7 40. Qb3+ Qc4 41. Qxc4+ Nxc4 42. f4) 39... Qd5 {[%emt 0:00:28] Prevents e4.} (39... Kf7 $11) 40. Rd4 $2 {[%emt 0:00:10][%mdl 8192] [#]} (40. e4 $1 $14 Qd1+ 41. Kg2) 40... Qb7 $2 {[%emt 0:00:25]} (40... Qf3 $1 $19 41. Rxd6 Kxd6 42. Qb8+ Ke6 43. Qg8+ Rf7 44. Qg6+ Ke7 45. Qxg5+ (45. Qc2 $2 Kf6 $19) 45... Rf6 46. Qc5+ Kf7) 41. Rb4 {[%emt 0:00:33]} Qd5 {[%emt 0:00:04]} 42. e4 $1 $36 {[%emt 0:01:24][%cal Be3e4,Be4e5][%mdl 2080] White is more active.} ({And not} 42. Rd4 Qf3 43. Rxd6 Kxd6 44. Qb8+ Ke6 45. Qg8+ Rf7 46. Qg6+ Ke7 47. Qxg5+ (47. Qc2 $2 Kf6 $19) 47... Rf6 48. Qc5+ Kf7 $19) 42... Qd1+ {[%emt 0:01:00]} 43. Kg2 {[%emt 0:00:00]} Rf7 {[%emt 0:00:18]} (43... Rxh6 $2 44. Qg7+ Ke6 45. Qxh6+ $18) 44. Rb3 {[%emt 0:00:00] Prevents Qf3+.} Qg4 $2 {[%emt 0:00:28][%mdl 8192]} ({Better is} 44... Ke6 $14) 45. e5 {[%emt 0:00:30]} Qe4+ $2 {[%emt 0:00:43]} (45... Ne8 $18 46. e6 (46. Qc2 Kf8 $16) 46... Rh7) 46. f3 {[%emt 0:00:15] Weighted Error Value: White=0.30/Black=0.65} 1-0

[Event "31st MPL National U18 Chess-ch 2022"]
[Site "Pollachi"]
[Date "2022.04.22"]
[Round "9.8"]
[White "Ayush Sharma"]
[Black "Shadhursshaan R"]
[Result "1-0"]
[ECO "B10"]
[WhiteElo "2302"]
[BlackElo "1633"]
[Annotator "TA"]
[PlyCount "99"]
[EventDate "2022.04.18"]
[EventCountry "IND"]
[SourceTitle "playchess.com"]
[Source "ChessBase"]
[SourceQuality "1"]
[TimeControl "5400+30"]

{[%evp 9,98,-13,8,10,10,12,21,24,24,14,20,14,43,34,33,7,41,46,35,36,43,23,14,0,12,-3,0,-17,0,0,0,0,0,0,0,0,0,2,28,13,43,22,29,24,13,10,21,16,28,12,21,12,18,8,62,69,62,70,62,8,10,10,15,0,0,0,5,0,79,0,37,-183,-182,-406,29978,29979,29976,1475,29995,29994,29994,29995,29995,29996,29996,29997,29997,29998,29998,29999,29999]} 1. e4 {[%emt 0:00:02]} c6 {[%emt 0:00:05]} 2. Nf3 {[%emt 0:00:24]} d5 {[%emt 0:00:14]} 3. d3 {[%emt 0:00:16]} dxe4 {[%emt 0:10:18]} 4. dxe4 {[%emt 0:00:02]} Qxd1+ {[%emt 0:00:24]} 5. Kxd1 {[%emt 0:00:02]} Bg4 {[%emt 0:00:36]} 6. Nbd2 {[%emt 0:01:29] B10: Caro-Kann: 2 d3 and 2 c4.} Nd7 {[%emt 0:00:17]} 7. h3 {[%emt 0:06:03]} Bh5 {[%emt 0:00:10]} 8. g4 {[%emt 0:00:04] The position is equal.} Bg6 {[%emt 0:00:06]} 9. Nh4 {[%emt 0:00:31]} e5 {[%emt 0:00:56] [#]} 10. a4 $146 {[%emt 0:01:03]} ({Predecessor:} 10. f3 Be7 11. Nxg6 hxg6 12. Nc4 Ngf6 13. c3 a5 14. a4 Nh7 15. f4 exf4 16. Bxf4 {½-½ (41) Rapport,R (2752)-Khenkin,I (2545) Germany 2020}) 10... Bc5 {[%emt 0:01:15]} (10... f6 $5 {[%cal Rg6f7]}) 11. f3 {[%emt 0:01:09]} Ne7 {[%emt 0:00:34]} 12. Bc4 {[%emt 0:06:54]} Be3 {[%emt 1:21:35][%cal Bc5e3,Be3g5,Bg5f4][%mdl 32]} (12... h5 $5 {[%cal Rh5g4]} 13. g5 Bf2 14. Nxg6 Nxg6 $11) 13. Ke2 {[%emt 1:19:01]} Bg5 {[%emt 0:00:30]} 14. Nf5 {[%emt 0:00:00]} Bxf5 {[%emt 0:00:30]} 15. gxf5 {[%emt 0:00:00]} g6 {[%emt 0:00:30]} 16. h4 {[%emt 0:00:00]} Bf4 {[%emt 0:00:00]} 17. fxg6 {[%emt 0:00:00]} hxg6 {[%emt 0:00:00]} 18. Ba2 {[%emt 0:00:00]} b5 {[%emt 0:00:00] Against Nc4} 19. axb5 {[%emt 0:00:00]} cxb5 {[%emt 0:00:00]} 20. Nb3 {[%emt 0:00:00][%cal Bd2b3,Bb3c1,Bc1d3][%mdl 32]} Bxc1 {[%emt 0:00:00]} 21. Nxc1 {[%emt 0:00:00]} a5 {[%emt 0:00:00]} 22. Nd3 {[%emt 0:00:00]} Rh5 {[%emt 0:00:00]} 23. c4 {[%emt 0:00:00]} b4 {[%emt 0:00:00]} 24. Bb3 {[%emt 0:00:00] With the idea Ba4.} Nc6 {[%emt 0:00:00] Threatens to win with ...Nd4+.} 25. Ba4 {[%emt 0:00:00]} Nd4+ {[%emt 0:00:00]} 26. Ke3 {[%emt 0:00:00][%cal Od3b4] aiming for Nxb4!} Ke7 {[%emt 0:00:00]} 27. Bxd7 {[%emt 0:00:00] Black must now prevent Ba4.} Nc2+ {[%emt 0:00:00]} 28. Kd2 {[%emt 0:00:00]} Nxa1 {[%emt 0:00:00]} 29. Ba4 {[%emt 0:00:00] Prevents Nb3+.} g5 $1 {[%emt 0:00:00][%cal Og5h4]} 30. Rxa1 {[%emt 0:00:00]} gxh4 {[%emt 0:00:00]} 31. Nf2 {[%emt 0:00:00]} Kd6 {[%emt 0:00:00]} ({Black should try} 31... Rg8 $11) 32. Ke3 $14 {[%emt 0:00:00]} h3 {[%emt 0:00:00]} 33. Rd1+ {[%emt 0:00:00]} Ke7 {[%emt 0:00:00]} 34. Rd7+ {[%emt 0:00:00]} (34. Ng4 $14) 34... Ke6 $11 {[%emt 0:00:00]} 35. c5 {[%emt 0:01:56]} h2 {[%emt 0:00:00]} 36. Rd6+ {[%emt 0:03:53]} Ke7 {[%emt 0:00:00]} 37. Rd7+ {[%emt 0:00:01]} Kf6 {[%emt 0:11:00]} 38. Rd6+ {[%emt 0:01:06]} Kg5 {[%emt 0:00:00] [#]} (38... Ke7 $11) 39. Nh1 {[%emt 0:01:16] &Bianco is more active.} ({White should play} 39. Rd1 $1 $16) 39... Kh4 {[%emt 0:00:00]} 40. Bd7 $2 {[%emt 0:02:32] [#]} (40. c6 $14 {stays ahead.} Kg5 41. Rd7) 40... a4 $1 $19 {[%emt 0:00:00] And now ...a3 would win.} 41. f4 $2 {[%emt 0:00:28]} (41. Bc6 {was forced.} Ra7 42. f4) 41... a3 $4 {[%emt 0:02:00][%mdl 8192]} ({Much less strong is} 41... exf4+ 42. Kxf4 Rg5 43. Rh6+ Rh5 44. Rd6 $18) (41... Rg8 $19 42. Bxa4 exf4+ 43. Kf2 Rxc5) 42. Rd2 {[%emt 0:03:18][%cal Rd2h2]} f5 {[%emt 0:00:30]} 43. exf5 {[%emt 0:00:00]} (43. Rxh2+ $142 Kg4 44. Rg2+ (44. Nf2+ Kg3 $18) 44... Kh4 45. exf5 Rh7 46. Rh2+ Kg4 47. Nf2+ Kg3 48. Rxh7 exf4+ 49. Ke2 f3+ 50. Ke3 axb2 51. Ne4+ Kg2 52. Rg7+ Kh2 53. Nd2) 43... a2 {[%emt 0:00:00]} 44. Rxh2+ {[%emt 0:00:00] White mates.} Kg4 {[%emt 0:00:00]} 45. f6+ {[%emt 0:00:00]} Rf5 {[%emt 0:00:00]} 46. Nf2+ Kg3 {[%emt 0:00:00]} 47. Rh3+ {[%emt 0:00:00]} Kg2 {[%emt 0:00:00]} 48. Bc6+ {[%emt 0:03:00]} e4 {[%emt 0:00:00]} 49. Bxe4+ {[%emt 0:00:00]} Kg1 {[%emt 0:03:30]} 50. Rh1# {[%emt 0:00:00] Weighted Error Value: White=0.25 (precise) /Black=0.32} 1-0

[Event "31st MPL National U18 Chess-ch 2022"]
[Site "Pollachi"]
[Date "2022.04.22"]
[Round "9.9"]
[White "Dinesh Kumar Jaganathan"]
[Black "Vengatesh Krishnan C"]
[Result "1-0"]
[ECO "A30"]
[WhiteElo "1943"]
[BlackElo "1506"]
[Annotator "TA"]
[PlyCount "59"]
[EventDate "2022.04.18"]
[EventCountry "IND"]
[SourceTitle "playchess.com"]
[Source "ChessBase"]
[SourceQuality "1"]
[TimeControl "5400+30"]

{[%evp 13,59,54,53,57,60,52,60,50,99,109,103,70,71,72,73,71,60,55,82,75,138,135,134,120,118,114,113,107,200,201,236,240,237,233,276,273,289,263,331,256,233,229,676,673,751,726,694,681]} 1. Nf3 {[%emt 1:31:00]} d5 {[%emt 0:00:39]} 2. d4 {[%emt 0:00:30]} c5 {[%emt 1:30:51]} 3. g3 {[%emt 0:00:30]} Nf6 {[%emt 0:00:00]} 4. Bg2 Nc6 {[%emt 0:01:00]} 5. O-O {[%emt 0:01:00]} Bf5 {[%emt 0:00:00]} 6. c4 e6 {[%emt 0:00:00]} 7. cxd5 Nxd5 {[%emt 0:01:30]} 8. Ne5 {[%emt 0:01:30] A30: Symmetrical English: Double Fianchetto and Hedgehog.} Nxe5 {[%emt 0:00:30]} (8... Nxd4 $2 9. e4 Qc7 10. Nd3 $18 (10. f4 f6 $18)) 9. dxe5 {[%emt 0:00:30] [#] e4 is the strong threat.} Bxb1 {[%emt 0:00:30]} 10. Rxb1 {[%emt 0:00:30] White is slightly better.} Be7 {[%emt 0:00:30]} (10... Qd7 $14) 11. Qb3 $16 {[%emt 0:00:30]} Qc7 {[%emt 0:00:00]} 12. Bxd5 {[%emt 0:00:00]} exd5 {[%emt 0:01:00]} 13. Qxd5 {[%emt 0:00:00]} Rd8 {[%emt 0:00:30]} 14. Qb3 {[%emt 0:01:30] &Bianco is more active.} O-O {[%emt 0:00:00]} 15. Bf4 {[%emt 0:00:30] [#]} g5 $146 {[%emt 0:00:00]} ({Predecessor:} 15... Qc6 16. Qc2 b5 17. Rbc1 a6 18. Rfd1 Rd5 19. e4 Rxd1+ 20. Rxd1 Rd8 21. Rxd8+ Bxd8 {½-½ (31) Fojtik,T (2106)-Svizensky,L (1929) Brno 2011}) 16. Be3 {[%emt 0:00:30]} Qxe5 {[%emt 0:00:00]} (16... Qc6 $142) 17. Qxb7 {[%emt 0:00:30]} Rb8 {[%emt 0:00:00]} 18. Qf3 {[%emt 0:00:30]} Rxb2 {[%emt 0:00:00]} 19. Rxb2 {[%emt 0:00:00]} Qxb2 {[%emt 0:00:00]} 20. Qe4 {[%emt 0:01:00]} Qf6 {[%emt 0:00:00]} (20... Bf6 $16 {is a better defense.}) 21. Rd1 $18 {[%emt 0:00:30][%cal Bf1d1,Bd1d7,Bd7a7,Ba7a8,Ba8e8,Be8h8][%mdl 32]} Rb8 {[%emt 0:04:00]} 22. Rd7 {[%emt 0:00:00][%csl LRa7,LRe7]} Bf8 {[%emt 0:00:30]} 23. Rxa7 {[%emt 0:01:00]} Kg7 {[%emt 0:00:00]} 24. Qd5 Be7 {[%emt 0:00:00]} 25. Kg2 ({Don't blunder} 25. Bxc5 $2 {[#]} Rd8 $1 26. Bd4 (26. Qc4 $2 Rd1+ 27. Kg2 Qc6+ 28. Kh3 Qc8+ 29. Kg2 Qc6+ 30. Kh3 Qxc5 $19) 26... Rxd5 $17) 25... Rb2 {[%emt 0:00:00]} 26. Qe4 ({Less strong is} 26. Bxc5 Bxc5 27. Qxc5 Rxe2 $16) 26... Bf8 {[%emt 0:00:00]} 27. Ra8 {[%cal Oa8f8] Black must now prevent Rxf8!} Be7 {[%emt 0:02:30]} (27... Rxe2 28. Qf3 Qxf3+ 29. Kxf3 Re1 30. Bxg5 Be7) 28. Re8 {[%emt 0:00:00] White is clearly winning.} Bd6 {[%emt 0:00:30]} 29. Qa8 {[%emt 0:03:00] Rg8+ would kill now.} h6 {[%emt 0:00:00]} 30. Rh8 {[%emt 0:00:00] Weighted Error Value: White=0.08 (flawless) /Black=0.40} 1-0

[Event "31st MPL National U18 Chess-ch 2022"]
[Site "Pollachi"]
[Date "2022.04.22"]
[Round "9.10"]
[White "Mahendra Teja Mekala"]
[Black "Gandhi, Aakash"]
[Result "1-0"]
[ECO "D47"]
[WhiteElo "1875"]
[BlackElo "1698"]
[Annotator "NA RC COMBH"]
[PlyCount "75"]
[EventDate "2022.04.18"]
[EventCountry "IND"]
[SourceTitle "playchess.com"]
[Source "ChessBase"]
[SourceQuality "1"]
[TimeControl "5400+30"]

1. d4 {[%emt 0:00:03]} d5 {[%emt 0:01:46]} 2. c4 {[%emt 0:00:13]} c6 {[%emt 0:00:22]} 3. Nf3 {[%emt 0:00:44]} Nf6 {[%emt 1:29:52]} 4. e3 {[%emt 1:31:30]} e6 {[%emt 0:00:30]} 5. Nc3 {[%emt 0:00:30]} Nbd7 {[%emt 0:00:00]} 6. Bd3 dxc4 {[%emt 0:01:00]} 7. Bxc4 {[%emt 0:01:00]} b5 {[%emt 0:00:00]} 8. Bd3 Bb7 {[%emt 0:01:00]} 9. O-O {[%emt 0:01:00]} b4 {[%emt 0:00:00]} 10. Na4 Be7 {[%emt 0:01:00]} 11. e4 {[%emt 0:01:00]} O-O {[%emt 0:00:30]} 12. Qc2 {[%emt 0:00:30]} h6 {[%emt 0:00:30]} 13. Be3 {[%emt 0:00:30]} Re8 {[%emt 0:00:30]} 14. h3 {[%emt 0:00:30]} Rc8 {[%emt 0:00:30]} 15. Rfd1 {[%emt 0:00:30]} Qa5 {[%emt 0:00:30]} 16. Nd2 {[%emt 0:00:30]} Ba6 {[%emt 0:00:30]} 17. Bxa6 {[%emt 0:00:00]} Qxa6 {[%emt 0:00:00]} 18. Nc5 Bxc5 {[%emt 0:01:00]} 19. dxc5 {[%emt 0:01:30]} Ne5 {[%emt 0:00:30]} 20. Bd4 {[%emt 0:00:30]} Nfd7 {[%emt 0:00:30]} 21. f4 {[%emt 0:00:30]} Ng6 {[%emt 0:00:00]} 22. Nc4 {[%emt 0:00:00]} Nf6 (22... Re7 $142 23. Be3 Nf6) 23. Bxf6 {[%emt 0:00:00]} gxf6 {[%emt 0:00:00]} 24. Nd6 {[%emt 0:01:30]} Nxf4 {[%emt 0:02:00]} 25. Nxc8 {[%emt 0:00:30]} ({Don't play} 25. Nxe8 Rxe8 26. Rd6 e5) 25... Rxc8 {[%emt 0:00:30]} 26. Qf2 {[%emt 0:00:00]} e5 {[%emt 0:00:30]} 27. Rd6 {[%emt 0:01:00]} Kg7 {[%emt 0:00:30]} 28. Kh2 {[%emt 0:00:30]} ({Less strong is} 28. Qh4 Qe2 29. Qg3+ Kf8 $18) 28... Qb7 $2 {[%emt 0:00:30]} (28... Qe2 29. Qg3+ Kf8) 29. Qh4 {[%emt 0:00:30]} Ne6 {[%emt 0:00:30]} 30. Rad1 {[%emt 0:00:30]} Rg8 {[%emt 0:00:30]} 31. Qg4+ {[%emt 0:00:30]} Kh8 {[%emt 0:00:00]} 32. Qf5 {[%emt 0:00:30]} Qe7 {[%emt 0:00:00]} 33. Rd7 Qxc5 {[%emt 0:01:30]} 34. Qxf6+ {[%emt 0:01:00]} Rg7 {[%emt 0:00:30]} 35. Qxh6+ {[%emt 0:00:30]} Kg8 {[%emt 0:00:30]} 36. Rd8+ Nf8 {[%emt 0:00:00]} 37. R1d6 {[%emt 0:01:00]} b3 {[%emt 0:00:00]} 38. Qf6 {[%emt 0:00:00]} 1-0

[Event "31st MPL National U18 Chess-ch 2022"]
[Site "Pollachi"]
[Date "2022.04.22"]
[Round "10.1"]
[White "Soham Kamotra"]
[Black "John Veny Akkarakaran"]
[Result "1-0"]
[ECO "E06"]
[WhiteElo "2229"]
[BlackElo "1687"]
[Annotator "TA"]
[PlyCount "110"]
[EventDate "2022.04.18"]
[EventCountry "IND"]
[SourceTitle "playchess.com"]
[Source "ChessBase"]
[SourceQuality "1"]
[TimeControl "5400+30"]

{[%evp 15,110,17,26,4,27,16,27,0,16,0,0,0,0,0,0,1,6,0,56,54,73,76,84,78,73,73,72,72,63,64,76,71,112,45,32,33,43,53,41,34,51,66,39,0,10,0,0,0,0,0,68,66,195,180,191,180,188,186,656,570,662,553,584,562,1041,1015,945,663,800,741,725,718,873,868,912,896,920,888,977,972,2955,2927,7011,7408,6736,6848,6840,6812,6566,6423,6295,5874,5718,5631,6399,6336,1808]} 1. d4 {[%emt 0:00:29]} e6 {[%emt 0:00:09]} 2. g3 {[%emt 0:00:39]} Nf6 {[%emt 0:00:24]} 3. c4 {[%emt 0:00:25]} d5 {[%emt 0:03:47]} 4. Bg2 {[%emt 0:00:11]} Be7 {[%emt 0:01:16]} 5. Nf3 {[%emt 0:00:08]} O-O {[%emt 0:00:06]} 6. O-O {[%emt 0:00:05]} c6 {[%emt 0:00:05]} 7. b3 {[%emt 0:04:02]} b6 {[%emt 0:02:23] is now debated instead of 7...Nbd7.} 8. Bb2 {[%emt 0:00:11]} Bb7 {[%emt 0:01:42]} 9. Nbd2 {[%emt 0:01:47] E06: Closed Catalan: Early deviations.} Na6 {[%emt 0:01:25]} 10. Ne5 {[%emt 0:02:35]} c5 {[%emt 0:14:21]} 11. Ndf3 {[%emt 0:02:16] White has an edge.} Rc8 {[%emt 0:08:17]} 12. Rc1 {[%emt 0:03:21] [#]} dxc4 $146 {[%emt 0:07:52]} ({Predecessor:} 12... Rc7 13. cxd5 exd5 14. Qd3 Ne4 15. a3 Qc8 16. h3 Qe6 17. Nd2 cxd4 18. Rxc7 Nxc7 19. Qxd4 Bxa3 {0-1 (31) Rodrigues,N (2028)-El Debs,F (2506) Pocos de Caldas 2016}) 13. Nxc4 {[%emt 0:00:14]} b5 {[%emt 0:04:49]} 14. Nce5 {[%emt 0:03:24]} Qb6 {[%emt 0:03:49]} 15. e3 {[%emt 0:01:31]} Rfd8 {[%emt 0:05:28]} 16. Qe2 {[%emt 0:00:45]} h6 {[%emt 0:02:42]} (16... Ne4 $11) 17. Rfd1 $14 {[%emt 0:06:32]} Be4 {[%emt 0:03:04]} 18. Bf1 {[%emt 0:09:59]} Nc7 {[%emt 0:06:07]} 19. dxc5 {[%emt 0:01:01]} (19. a3 {feels hotter.} a6 20. dxc5 Bxc5 21. Rxd8+ Rxd8 22. b4) 19... Bxc5 {[%emt 0:01:20]} 20. Rxd8+ {[%emt 0:02:11]} Rxd8 {[%emt 0:00:01]} 21. Bd4 {[%emt 0:00:16]} Bxd4 {[%emt 0:05:15]} 22. Nxd4 {[%emt 0:00:04]} a6 {[%emt 0:02:36]} 23. Ndc6 {[%emt 0:04:39]} Re8 {[%emt 0:02:25]} 24. f3 {[%emt 0:01:45] &Bianco is more active.} (24. Qd2 $16) 24... Bxc6 {[%emt 0:03:22]} 25. Rxc6 {[%emt 0:00:03]} Qa7 {[%emt 0:00:08]} 26. Qf2 {[%emt 0:01:13]} Qb7 {[%emt 0:03:24][%cal Of6d7]} 27. Qc2 {[%emt 0:02:09]} Ncd5 {[%emt 0:00:39] White must now prevent ...Nb4.} 28. Qc5 $36 {[%emt 0:00:12][%mdl 2048] Against Nb4. White is pushing.} Qb8 {[%emt 0:01:24]} 29. f4 {[%emt 0:06:29]} Ne4 {[%emt 0:02:09] Pair of Knights!} 30. Qd4 {[%emt 0:00:22]} Ndf6 {[%emt 0:00:35]} 31. Bd3 {[%emt 0:18:14]} Rd8 {[%emt 0:01:40]} 32. Qb2 {[%emt 0:07:17]} Qa7 {[%emt 0:01:37]} (32... b4 $11) 33. Qc1 $1 {[%emt 0:00:02]} h5 {[%emt 0:05:25] A mistake that costs the game.} (33... Qa8 $14) 34. Rc8 $1 $18 {[%emt 0:08:50]} ({Don't play} 34. Rc7 $6 Qb6 $14) 34... Rxc8 {[%emt 0:01:11]} 35. Qxc8+ {[%emt 0:00:02]} Kh7 {[%emt 0:00:01] [#]} 36. Kg2 $1 {[%emt 0:00:14] Strongly threatening Kf3.} b4 $2 {[%emt 0:04:35]} (36... Qxe3 $2 {[#]} 37. Nxf7 $1 Ng8 38. Qc2 $18) (36... g6 37. Qf8 Qb7) 37. Kf3 {[%emt 0:00:44] White is clearly winning.} Qe7 {[%emt 0:01:06]} 38. Qc2 {[%emt 0:01:10]} g6 {[%emt 0:00:17]} 39. Bxe4 {[%emt 0:00:06]} Qa7 {[%emt 0:00:06] [#]} 40. Bxg6+ $1 {[%emt 0:00:16]} Kg7 {[%emt 0:00:08]} 41. Be4 {[%emt 0:01:25]} Qb6 {[%emt 0:00:00]} 42. Kf2 {[%emt 0:02:23]} Qc5 {[%emt 0:00:05]} 43. Ke2 {[%emt 0:01:00]} Qd6 {[%emt 0:00:01]} 44. Bf3 {[%emt 0:00:13]} a5 {[%emt 0:00:09]} 45. Qc6 {[%emt 0:00:13]} Qd8 {[%emt 0:00:11]} 46. Qb7 {[%emt 0:00:09]} Qe8 {[%emt 0:00:03]} 47. h3 {[%emt 0:00:28]} a4 {[%emt 0:00:05]} 48. bxa4 {[%emt 0:00:07][%cal Bb3a4,Ba4a5,Ba5a6][%mdl 32] And now a5 would win.} Ng8 {[%emt 0:00:09] [#]} 49. Qxf7+ $1 {[%emt 0:00:12]} Qxf7 {[%emt 0:00:02]} 50. Nxf7 {[%emt 0:00:06]} Kxf7 {[%emt 0:00:02] KB-KN} 51. a5 {[%emt 0:00:10] Threatening mate with a6.} Ne7 {[%emt 0:00:01]} 52. a6 {[%emt 0:00:06]} Nc8 {[%emt 0:00:01]} 53. Bxh5+ {[%emt 0:00:08]} Kf6 {[%emt 0:00:04]} 54. Bf3 {[%emt 0:00:04]} Na7 {[%emt 0:00:06]} 55. Kd3 {[%emt 0:00:03]} Ke7 {[%emt 0:00:08] Weighted Error Value: White=0.23 (precise) /Black=0.37} 1-0